bitfinex/quotes_SOLUSD_20240808
["timestamp","ask_amount","ask_price","bid_price","bid_amount"]
[1723109889065,19.1,155.45,155.43,21.5555]
[1723109889365,19.1,155.47,155.43,21.5555]
[1723109890550,19.1,155.46,155.43,21.5555]
[1723109890951,76.4,155.52,155.43,21.5555]
[1723109890952,19.1,155.47,155.43,21.5555]
[1723109891759,19.1,155.48,155.43,21.5555]
[1723109891964,19.1,155.5,155.44,20.5558605]
[1723109892160,19.1,155.5,155.45,45.17]
[1723109893976,6.4301,155.52,155.45,45.17]
[1723109893977,19.1,155.52,155.45,65.55530021]
[1723109894151,6.4292,155.54,155.46,1.45521753]
[1723109894478,19.1,155.52,155.46,19.27]
[1723109894970,19.1,155.54,155.48,25.3864]
[1723109895151,19.1,155.54,155.49,1.28604982]
[1723109895872,6.4288,155.55,155.49,1.28604982]
[1723109896367,6.4288,155.55,155.48,6.2864]
[1723109897053,6.4292,155.54,155.48,6.2864]
[1723109897582,29.07614283,155.53,155.48,6.2864]
[1723109897883,27.83,155.51,155.44,6.1005]
[1723109898081,6.4318,155.48,155.44,6.1005]
[1723109898669,34.2613,155.49,155.44,6.1005]
[1723109898874,27.83,155.49,155.44,6.1005]
[1723109899602,34.2613,155.49,155.44,6.1005]
[1723109900369,27.83,155.52,155.45,0.17]
[1723109900545,27.83,155.52,155.45,0.34]
[1723109900748,7.67664283,155.51,155.45,0.34]
[1723109900955,6.4309,155.5,155.45,0.34]
[1723109901362,6.4313,155.49,155.44,6.1005]
[1723109901878,27.83,155.48,155.44,6.1005]
[1723109902283,27.83,155.48,155.4,6.5416]
[1723109902583,34.2617,155.48,155.4,6.5416]
[1723109903381,6.4322,155.47,155.4,6.5416]
[1723109904070,34.2617,155.48,155.4,6.5416]
[1723109904775,27.83,155.48,155.4,6.5416]
[1723109904978,27.83,155.46,155.4,6.5416]
[1723109905159,6.4333,155.44,155.4,6.5416]
[1723109905360,34.2633,155.44,155.4,6.5416]
[1723109905773,27.83,155.44,155.4,6.5416]
[1723109905968,35.50964283,155.44,155.4,6.5416]
[1723109906280,6.4339,155.43,155.36,22.3689]
[1723109906464,27.83,155.42,155.36,22.3689]
[1723109906873,34.2643,155.42,155.36,22.3689]
[1723109907275,27.83,155.42,155.36,22.3689]
[1723109907469,27.83,155.42,155.36,6.0202]
[1723109907670,6.4346,155.41,155.36,6.0202]
[1723109908293,34.2642,155.42,155.36,6.0202]
[1723109908496,27.83,155.4,155.36,6.0202]
[1723109908782,27.83,155.4,155.32,22.0351]
[1723109908961,34.265,155.4,155.32,22.0351]
[1723109909679,27.83,155.4,155.32,22.0351]
[1723109909984,27.83,155.4,155.33,0.34]
[1723109910167,27.83,155.4,155.33,1.62728544]
[1723109910371,27.83,155.42,155.33,1.62728544]
[1723109910776,27.83,155.42,155.33,66.62728544]
[1723109911266,34.2634,155.44,155.33,66.62728544]
[1723109912101,6.4338,155.43,155.33,66.62728544]
[1723109912478,6.4338,155.43,155.33,65.34]
[1723109912799,6.4338,155.43,155.34,6.604]
[1723109913001,6.4338,155.43,155.35,45.34]
[1723109913192,34.2634,155.44,155.35,45.34]
[1723109913491,27.83,155.46,155.36,21.28673959]
[1723109913678,27.83,155.46,155.37,45.34]
[1723109913873,6.433,155.45,155.37,45.34]
[1723109914398,6.4334,155.44,155.37,45.34]
[1723109916278,6.4329,155.45,155.38,16.6592]
[1723109916475,6.4329,155.45,155.4,6.1033]
[1723109916702,34.2626,155.46,155.4,6.1033]
[1723109919278,27.83,155.46,155.4,6.1033]
[1723109919482,6.72827593,155.47,155.41,0.17]
[1723109919687,6.4323,155.47,155.41,0.34]
[1723109920179,27.83,155.48,155.4,6.1033]
[1723109920703,27.83,155.46,155.4,6.1033]
[1723109920991,6.4338,155.43,155.4,6.1033]
[1723109921310,6.4334,155.44,155.4,6.1033]
[1723109921474,6.4329,155.45,155.4,6.1033]
[1723109921993,34.2625,155.46,155.4,6.1033]
[1723109922297,6.433,155.45,155.4,6.1033]
[1723109922494,34.2628,155.46,155.4,6.1033]
[1723109922873,1.24614283,155.45,155.4,6.1033]
[1723109924601,7.67914283,155.45,155.4,6.1033]
[1723109926130,1.24614283,155.44,155.4,6.1033]
[1723109926339,1.24614283,155.44,155.38,16.6592]
[1723109926340,27.83,155.42,155.36,6.0591]
[1723109926515,6.4359,155.38,155.36,6.0591]
[1723109926701,27.83,155.4,155.36,6.0591]
[1723109926900,6.4354,155.39,155.36,6.0591]
[1723109927616,27.83,155.4,155.32,6.5531]
[1723109927617,6.4363,155.37,155.32,6.5531]
[1723109929042,1.24614283,155.41,155.32,6.5531]
[1723109929043,27.83,155.36,155.32,6.5531]
[1723109929203,27.83,155.34,155.24,6.3602]
[1723109929527,34.2675,155.34,155.24,6.3602]
[1723109929740,27.83,155.34,155.24,6.3602]
[1723109930524,27.83,155.34,155.25,20.0]
[1723109930730,34.2676,155.34,155.25,20.0]
[1723109931728,6.4379,155.33,155.25,20.0]
[1723109932136,389.92667542,155.37,155.3,22.6956]
[1723109932315,383.2,155.37,155.3,22.6956]
[1723109932738,383.2,155.37,155.31,0.34]
[1723109933035,27.83,155.41,155.36,6.4366]
[1723109933745,27.83,155.41,155.31,0.34]
[1723109933746,6.4353,155.4,155.31,0.34]
[1723109934028,6.4368,155.36,155.3,22.6956]
[1723109934332,27.83,155.39,155.3,22.6956]
[1723109934632,27.83,155.39,155.31,45.34]
[1723109934808,34.2654,155.39,155.31,45.34]
[1723109935002,6.436,155.38,155.31,45.34]
[1723109935206,16.0859,155.42,155.3,22.6956]
[1723109935207,29.07614283,155.37,155.3,22.6956]
[1723109935716,29.07614283,155.37,155.3,6.5981]
[1723109935717,27.83,155.35,155.3,6.5981]
[1723109936924,6.4376,155.34,155.3,6.5981]
[1723109937310,27.83,155.35,155.3,13.037]
[1723109937507,35.51354283,155.35,155.3,13.037]
[1723109938024,6.4376,155.34,155.3,6.5981]
[1723109938428,34.2671,155.35,155.3,6.5981]
[1723109938734,1.24614283,155.34,155.3,6.5981]
[1723109938905,34.2671,155.35,155.3,6.5981]
[1723109939338,1.24614283,155.37,155.3,6.5981]
[1723109939831,6.4367,155.36,155.3,6.5981]
[1723109940037,1.24614283,155.35,155.3,6.5981]
[1723109941112,27.83,155.37,155.3,6.5981]
[1723109941113,6.4367,155.36,155.3,6.5981]
[1723109941312,1.24614283,155.35,155.3,6.5981]
[1723109941525,6.4381,155.33,155.29,0.8466586]
[1723109941735,6.4375,155.34,155.29,0.8466586]
[1723109942438,34.267,155.35,155.29,0.8466586]
[1723109942623,27.83,155.35,155.29,0.8466586]
[1723109943022,34.2674,155.35,155.29,0.8466586]
[1723109943529,27.83,155.35,155.29,0.8466586]
[1723109945432,29.07614283,155.35,155.29,0.8466586]
[1723109945930,27.83,155.35,155.29,0.8466586]
[1723109946133,34.267,155.35,155.29,0.8466586]
[1723109946716,6.72409011,155.36,155.3,6.189]
[1723109947015,1.24614283,155.35,155.3,6.189]
[1723109947425,411.03,155.37,155.3,6.189]
[1723109947819,1.24614283,155.36,155.3,6.189]
[1723109948223,27.83,155.37,155.3,6.189]
[1723109948422,1.24614283,155.36,155.3,6.189]
[1723109949132,29.07614283,155.35,155.3,6.189]
[1723109949321,6.4375,155.34,155.3,6.189]
[1723109949523,1.24614283,155.33,155.3,6.189]
[1723109949917,35.51324283,155.35,155.3,6.189]
[1723109950525,34.2671,155.35,155.3,6.189]
[1723109950928,27.83,155.35,155.3,6.189]
[1723109951322,34.267,155.35,155.3,6.189]
[1723109951534,43.4527,155.35,155.29,0.8466586]
[1723109951728,27.83,155.33,155.29,0.8466586]
[1723109952133,6.4383,155.32,155.29,0.8466586]
[1723109952326,34.268,155.33,155.29,0.8466586]
[1723109952647,6.4387,155.31,155.29,0.8466586]
[1723109952856,27.83,155.31,155.29,0.8466586]
[1723109953549,34.2679,155.33,155.29,0.8466586]
[1723109953735,27.83,155.33,155.29,7.2860586]
[1723109953933,29.07614283,155.33,155.3,6.4391]
[1723109954167,34.2671,155.35,155.3,6.4391]
[1723109954336,6.4375,155.34,155.3,6.4391]
[1723109954678,6.4375,155.34,155.29,7.2860586]
[1723109954860,1.24614283,155.34,155.29,0.8466586]
[1723109955059,7.68374283,155.34,155.29,0.8466586]
[1723109955629,29.07614283,155.35,155.29,0.8466586]
[1723109955855,27.83,155.35,155.29,0.8466586]
[1723109956063,1.24614283,155.35,155.3,6.5495]
[1723109957055,29.07614283,155.37,155.3,6.5495]
[1723109958237,1.24614283,155.37,155.3,6.5495]
[1723109958429,6.71376376,155.38,155.31,0.17]
[1723109958749,6.4351,155.4,155.31,45.34]
[1723109959740,6.4354,155.39,155.31,45.34]
[1723109960248,6.4326,155.46,155.34,6.0001]
[1723109960549,6.4326,155.46,155.35,65.34]
[1723109960951,6.71006962,155.47,155.36,21.1197]
[1723109961150,6.71006962,155.47,155.39,27.83]
[1723109961352,6.4324,155.47,155.4,0.17]
[1723109961539,411.03,155.5,155.38,6.0001]
[1723109961540,6.4333,155.44,155.38,6.0001]
[1723109962053,1.24614283,155.43,155.38,6.0001]
[1723109962242,29.07614283,155.42,155.38,6.0001]
[1723109962556,27.83,155.42,155.38,6.0001]
[1723109962940,27.83,155.44,155.38,6.0001]
[1723109963143,29.07614283,155.44,155.38,6.0001]
[1723109963347,35.50944283,155.44,155.38,6.0001]
[1723109963849,27.83,155.42,155.34,6.1811]
[1723109964050,27.83,155.4,155.34,6.1811]
[1723109964359,1.24614283,155.39,155.34,6.1811]
[1723109964655,27.83,155.4,155.34,6.1811]
[1723109964856,1.24614283,155.41,155.34,6.1811]
[1723109965046,7.68074283,155.41,155.34,6.1811]
[1723109965446,6.4346,155.41,155.34,6.1811]
[1723109966135,1.24614283,155.4,155.34,6.1811]
[1723109966339,7.68114283,155.4,155.34,6.1811]
[1723109966760,1.24614283,155.39,155.34,6.1811]
[1723109967150,27.83,155.42,155.34,6.1811]
[1723109967544,389.6334,155.44,155.34,6.1811]
[1723109967545,417.4634,155.44,155.34,6.1811]
[1723109967962,417.4634,155.44,155.35,45.34]
[1723109968260,6.4339,155.43,155.34,6.1811]
[1723109968560,411.03,155.44,155.35,0.17]
[1723109968561,417.4634,155.44,155.35,0.17]
[1723109968957,7.68004283,155.43,155.34,6.1811]
[1723109969158,6.4339,155.43,155.34,6.1811]
[1723109969343,27.83,155.44,155.34,6.1811]
[1723109969545,27.83,155.46,155.35,65.34]
[1723109970354,34.2628,155.46,155.35,65.34]
[1723109970560,34.53857066,155.5,155.38,43.8593]
[1723109970754,27.83,155.48,155.38,16.0293]
[1723109970948,6.70857066,155.5,155.38,16.0293]
[1723109970949,27.83,155.44,155.38,16.0293]
[1723109971266,6.4346,155.41,155.37,6.4456]
[1723109971442,1.24614283,155.4,155.37,6.4456]
[1723109972141,6.4342,155.42,155.37,6.4456]
[1723109972755,6.4338,155.43,155.37,6.4456]
[1723109975156,40.97437657,155.44,155.37,6.4456]
[1723109975358,34.54097657,155.44,155.37,6.4456]
[1723109975665,27.83,155.44,155.37,6.4456]
[1723109976050,1.24614283,155.48,155.37,6.4456]
[1723109976051,6.70982857,155.47,155.37,6.4456]
[1723109976361,389.6311,155.5,155.39,15.6676]
[1723109976564,260.7,155.53,155.42,27.83]
[1723109976752,6.4321,155.47,155.41,6.5642]
[1723109976952,6.70829896,155.52,155.45,27.83]
[1723109977259,2.53991864,155.59,155.46,65.17]
[1723109977260,27.83,155.57,155.46,65.17]
[1723109977453,27.83,155.55,155.46,65.17]
[1723109977651,27.83,155.53,155.44,21.5832]
[1723109977956,6.4314,155.49,155.44,21.5832]
[1723109978154,34.2614,155.49,155.44,6.4251]
[1723109978362,6.432,155.48,155.44,6.4251]
[1723109978666,27.83,155.49,155.44,6.4251]
[1723109980150,34.2614,155.49,155.44,6.4251]
[1723109980356,6.4319,155.48,155.44,6.4251]
[1723109980578,27.83,155.49,155.44,6.4251]
[1723109980762,45.17,155.48,155.44,6.4251]
[1723109981154,34.2616,155.49,155.44,6.4251]
[1723109981467,1.24614283,155.48,155.44,6.4251]
[1723109981674,34.2613,155.49,155.44,6.4251]
[1723109981850,27.83,155.49,155.44,6.4251]
[1723109982055,27.83,155.47,155.44,6.4251]
[1723109983660,34.2621,155.47,155.44,6.4251]
[1723109983879,27.83,155.47,155.44,6.4251]
[1723109984254,34.2621,155.47,155.44,6.4251]
[1723109984456,27.83,155.47,155.4,22.1915]
[1723109984673,6.4329,155.45,155.4,22.1915]
[1723109985458,6.433,155.45,155.4,22.1915]
[1723109985675,27.83,155.43,155.4,6.2618]
[1723109985882,27.83,155.43,155.36,15.1007]
[1723109985883,27.83,155.41,155.36,6.2335]
[1723109986181,6.4354,155.39,155.36,6.2335]
[1723109986354,6.435,155.4,155.36,6.2335]
[1723109986561,34.2646,155.41,155.36,6.2335]
[1723109986973,27.83,155.41,155.36,6.2335]
[1723109987368,34.2645,155.41,155.36,6.2335]
[1723109988067,27.83,155.41,155.36,6.2335]
[1723109988256,34.2646,155.41,155.36,6.2335]
[1723109989692,27.83,155.41,155.36,6.2335]
[1723109989978,34.2646,155.41,155.36,6.2335]
[1723109990288,27.83,155.41,155.36,6.2335]
[1723109992384,6.71203001,155.43,155.36,6.2335]
[1723109992593,6.4391,155.3,155.29,75.75092235]
[1723109992897,32.1789,155.39,155.09,11.60303936]
[1723109992898,7.45609517,155.31,155.2,16.2865]
[1723109993062,27.83,155.33,155.21,29.11789066]
[1723109993262,27.83,155.35,155.23,27.83]
[1723109993494,27.83,155.35,155.24,1.28791557]
[1723109993697,27.83,155.33,155.21,29.1177988]
[1723109993858,34.2678,155.34,155.22,1.28798252]
[1723109994059,6.438,155.33,155.22,1.28798252]
[1723109994281,6.439,155.31,155.26,6.4405]
[1723109994463,27.83,155.3,155.27,6.4403]
[1723109994874,27.83,155.32,155.28,6.4396]
[1723109995299,27.83,155.32,155.2,16.2865]
[1723109995300,34.2685,155.32,155.27,6.4403]
[1723109996096,6.4392,155.3,155.2,16.2865]
[1723109996264,6.4387,155.31,155.21,21.28794974]
[1723109997062,6.4387,155.31,155.26,6.4405]
[1723109999290,6.4393,155.3,155.25,6.4411]
[1723109999670,6.4387,155.31,155.26,6.4407]
[1723110000588,27.83,155.34,155.21,55.55999127]
[1723110000769,27.83,155.34,155.23,27.83]
[1723110000971,34.2676,155.34,155.29,6.4395]
[1723110002225,27.83,155.36,155.25,6.3277]
[1723110002380,6.7144602,155.38,155.25,6.3277]
[1723110002381,27.83,155.38,155.26,66.62761986]
[1723110002779,34.266,155.38,155.26,66.62761986]
[1723110003394,6.4364,155.37,155.26,73.06961986]
[1723110003699,27.83,155.38,155.27,27.83]
[1723110003902,27.83,155.38,155.28,65.34]
[1723110004316,34.265,155.4,155.29,1.28723198]
[1723110004611,34.265,155.4,155.28,65.34]
[1723110004612,34.265,155.4,155.3,0.34]
[1723110004773,34.265,155.4,155.28,65.34]
[1723110005175,6.7128,155.41,155.3,6.4795]
[1723110005470,27.83,155.42,155.31,93.17]
[1723110005799,34.2643,155.42,155.31,93.17]
[1723110006228,34.2643,155.42,155.31,99.612]
[1723110009296,27.83,155.42,155.31,65.34]
[1723110009499,27.83,155.4,155.3,6.4795]
[1723110009801,34.2658,155.38,155.3,6.4795]
[1723110010133,6.4363,155.37,155.3,6.4795]
[1723110010496,27.83,155.36,155.3,6.4795]
[1723110010805,34.2675,155.34,155.3,6.4795]
[1723110011019,6.4379,155.33,155.3,6.4795]
[1723110011199,1.60967619,155.38,155.26,6.3805]
[1723110011200,34.2686,155.32,155.26,6.3805]
[1723110011507,6.4391,155.3,155.26,6.3805]
[1723110011821,1.60996281,155.29,155.22,6.5809]
[1723110012115,34.27,155.28,155.22,6.5809]
[1723110012323,27.83,155.26,155.22,6.5809]
[1723110012524,27.83,155.24,155.17,6.2885]
[1723110012730,6.442,155.23,155.17,6.2885]
[1723110013018,6.4434,155.2,155.17,6.2885]
[1723110013223,27.83,155.18,155.12,12.6449]
[1723110013406,27.83,155.18,155.12,6.1987]
[1723110013794,6.4433,155.2,155.12,6.1987]
[1723110014204,6.4438,155.19,155.14,7.2923586]
[1723110014398,1.61131808,155.18,155.14,0.8466586]
[1723110014907,6.4445,155.18,155.14,0.8466586]
[1723110015214,1.61162059,155.2,155.14,0.8466586]
[1723110015429,0.17,155.21,155.14,0.8466586]
[1723110015607,0.34,155.22,155.14,0.8466586]
[1723110015805,6.4438,155.19,155.14,0.8466586]
[1723110016123,45.34,155.22,155.14,0.8466586]
[1723110016124,52.06338955,155.22,155.14,0.8466586]
[1723110016307,1.61147044,155.21,155.14,0.8466586]
[1723110016616,6.4453,155.15,155.14,0.8466586]
[1723110017203,6.445,155.16,155.14,0.8466586]
[1723110017408,6.4453,155.15,155.14,0.8466586]
[1723110017823,6.445,155.16,155.14,0.8466586]
[1723110018005,6.4444,155.18,155.14,0.8466586]
[1723110018406,6.4447,155.17,155.14,0.8466586]
[1723110018616,1.95149602,155.2,155.14,0.8466586]
[1723110018817,45.34,155.2,155.14,0.8466586]
[1723110019139,6.4448,155.17,155.14,0.8466586]
[1723110019697,1.61156738,155.16,155.14,0.8466586]
[1723110019908,6.4453,155.15,155.14,0.8466586]
[1723110020907,6.445,155.16,155.14,0.8466586]
[1723110021118,6.4453,155.15,155.14,0.8466586]
[1723110022432,51.7853,155.15,155.14,0.8466586]
[1723110022951,53.39752915,155.15,155.14,0.8466586]
[1723110023518,6.4476,155.1,155.05,6.4491]
[1723110024029,35.95,155.13,155.02,6.3795]
[1723110024030,6.4478,155.09,155.02,6.3795]
[1723110024822,6.4478,155.09,155.04,6.4498]
[1723110025226,1.61242302,155.12,154.98,0.8466586]
[1723110025227,35.95,155.07,154.98,0.8466586]
[1723110025541,6.6192,155.06,155.01,6.4509]
[1723110025728,6.4495,155.05,155.0,6.4515]
[1723110025921,46.61290981,155.08,154.98,0.8466586]
[1723110025922,45.0,155.08,154.98,0.8466586]
[1723110026121,6.4486,155.08,155.03,6.4503]
[1723110026322,6.449,155.07,155.02,6.4506]
[1723110026522,6.4502,155.04,154.98,7.2988586]
[1723110026722,8.0634429,155.03,154.98,7.2988586]
[1723110027132,6.4504,155.03,154.98,7.2988586]
[1723110027527,6.4499,155.04,154.99,6.452]
[1723110028231,6.4505,155.03,154.98,7.2989586]
[1723110028438,6.4505,155.03,154.98,0.8466586]
[1723110028637,6.45,155.04,154.99,6.452]
[1723110028844,0.17,155.06,154.99,6.4518]
[1723110029029,6.4502,155.04,154.99,6.4518]
[1723110029231,6.4502,155.04,154.98,0.8466586]
[1723110029232,45.0,155.03,154.98,0.8466586]
[1723110029531,46.61328499,155.03,154.98,0.8466586]
[1723110029728,1.61328499,155.03,154.98,0.8466586]
[1723110030244,6.4512,155.01,154.98,0.8466586]
[1723110030938,1.61328314,155.0,154.98,0.8466586]
[1723110031444,6.452,154.99,154.98,0.8466586]
[1723110031830,51.792,154.99,154.98,0.8466586]
[1723110032033,53.40569445,154.99,154.98,0.8466586]
[1723110032335,119.03369445,154.99,154.91,6.4553]
[1723110032531,6.4536,154.95,154.9,6.4557]
[1723110032922,6.4529,154.97,154.92,6.4548]
[1723110033351,6.4537,154.95,154.91,6.4553]
[1723110033731,1.61392685,154.94,154.9,6.4556]
[1723110033949,6.4533,154.96,154.91,6.4553]
[1723110034356,1.6139056,154.95,154.91,6.4553]
[1723110034861,0.17,154.94,154.85,6.5685]
[1723110035153,53.96580833,154.96,154.89,6.4561]
[1723110035358,45.34,154.95,154.89,6.4561]
[1723110035556,45.34,154.95,154.85,6.5685]
[1723110035757,46.95415046,154.95,154.85,6.5685]
[1723110036056,46.95415046,154.95,154.87,6.4567]
[1723110036057,6.4549,154.92,154.87,6.4567]
[1723110036265,6.4549,154.92,154.85,6.5685]
[1723110036473,45.34,154.95,154.85,6.5685]
[1723110036755,45.34,154.95,154.92,6.4549]
[1723110036756,1.61389958,154.95,154.92,6.4549]
[1723110036961,1.61389958,154.95,154.85,6.5685]
[1723110036962,1.61389958,154.95,154.91,6.4552]
[1723110037167,6.4533,154.96,154.91,6.4552]
[1723110037531,1.61383739,154.95,154.91,6.4552]
[1723110038347,6.73315933,154.99,154.86,1.46111051]
[1723110038544,1.61388814,155.0,154.87,0.17]
[1723110038733,6.4525,154.98,154.93,6.4542]
[1723110040054,1.61360503,155.0,154.93,6.4544]
[1723110040265,46.61360503,155.0,154.93,6.4544]
[1723110040563,6.4535,154.96,154.91,6.455]
[1723110041353,6.4535,154.96,154.86,20.0]
[1723110041354,45.0,155.0,154.86,20.0]
[1723110041536,6.4527,154.98,154.93,6.4543]
[1723110042158,0.17,154.99,154.86,20.0]
[1723110042356,6.4527,154.98,154.93,6.4544]
[1723110042950,6.4513,155.01,154.87,0.17]
[1723110043152,6.4508,155.02,154.97,6.4528]
[1723110043847,6.4512,155.01,154.97,6.4528]
[1723110044862,6.4512,155.01,154.96,6.4532]
[1723110045047,6.4512,155.01,154.97,6.4527]
[1723110045560,6.4509,155.02,154.97,6.4527]
[1723110045759,6.4519,155.0,154.96,6.4531]
[1723110046441,16.45942936,155.04,154.94,6.2144]
[1723110046647,1.61343188,155.06,154.99,6.4519]
[1723110046846,6.4507,155.03,154.98,6.4523]
[1723110047161,6.4499,155.04,154.99,6.4518]
[1723110047362,6.4504,155.03,154.99,6.4518]
[1723110047557,6.4504,155.03,154.98,6.4523]
[1723110048243,6.4508,155.02,154.94,6.2144]
[1723110048446,6.4508,155.02,154.97,6.4527]
[1723110048774,51.4513,155.01,154.97,6.4527]
[1723110048986,6.4508,155.02,154.97,6.4527]
[1723110049340,6.4508,155.02,154.98,6.4523]
[1723110050062,6.4508,155.02,154.97,6.4527]
[1723110050366,6.6204,155.03,154.98,6.4521]
[1723110050660,6.4504,155.03,154.98,6.4521]
[1723110051045,6.45,155.04,154.99,6.4519]
[1723110051249,383.2,155.05,155.0,6.4512]
[1723110051250,389.6496,155.05,155.0,6.4512]
[1723110051461,383.2,155.05,154.94,6.2144]
[1723110051767,34.481,155.02,154.97,6.4527]
[1723110052059,1.61322394,155.01,154.98,6.4523]
[1723110053462,28.03,155.02,154.99,6.4519]
[1723110053961,28.03,155.04,155.02,6.4504]
[1723110054639,383.2,155.05,155.02,6.4504]
[1723110054844,383.2,155.05,154.94,7.50446548]
[1723110055162,383.2,155.05,155.03,6.4502]
[1723110055362,34.4785,155.08,155.03,6.4502]
[1723110055569,34.4785,155.08,155.04,6.4498]
[1723110055570,28.03,155.08,155.04,6.4498]
[1723110056070,34.4783,155.08,155.03,6.4503]
[1723110056362,6.4487,155.07,155.03,6.4503]
[1723110056564,28.03,155.08,155.05,6.4494]
[1723110056763,34.4778,155.1,155.05,6.4494]
[1723110056957,28.03,155.1,155.07,6.4485]
[1723110057162,29.24612167,155.12,155.07,6.4486]
[1723110057163,6.4473,155.11,155.07,6.4486]
[1723110057358,50.5493,155.12,155.07,6.4486]
[1723110057572,6.447,155.11,155.06,6.449]
[1723110058688,44.1027,155.12,155.02,6.4325]
[1723110058977,6.4483,155.08,155.03,6.45]
[1723110059272,1.61249421,155.07,155.03,6.45]
[1723110059488,1.61249421,155.07,155.02,6.4325]
[1723110059795,6.4496,155.05,155.0,6.4514]
[1723110059961,8.06246633,155.05,155.0,6.4514]
[1723110060146,8.06275828,155.04,155.0,6.4514]
[1723110060346,28.03,155.06,155.0,6.4515]
[1723110060563,6.4496,155.05,155.0,6.4515]
[1723110060972,34.4792,155.06,155.01,6.451]
[1723110061188,6.4496,155.05,155.0,6.4515]
[1723110061354,8.06245585,155.05,155.0,6.4515]
[1723110061759,28.03,155.06,154.98,6.2528]
[1723110061961,28.03,155.06,155.02,6.4504]
[1723110062454,6.4479,155.09,155.04,6.4498]
[1723110062659,34.4774,155.1,155.06,6.449]
[1723110063086,34.4774,155.1,155.05,6.4494]
[1723110063794,6.4474,155.1,155.05,6.4494]
[1723110064079,6.4471,155.11,155.06,6.449]
[1723110064262,6.4476,155.1,155.05,6.4494]
[1723110064658,1.61232079,155.09,155.03,6.4499]
[1723110064998,6.4478,155.1,155.05,6.4494]
[1723110065284,6.4458,155.14,155.09,6.4475]
[1723110065486,9.94163078,155.15,155.11,6.4469]
[1723110065786,6.4454,155.15,155.11,6.4469]
[1723110066258,6.445,155.16,155.11,6.4469]
[1723110066464,6.4454,155.15,155.11,6.4469]
[1723110066866,42.71000018,155.18,155.11,6.4469]
[1723110067183,42.71000018,155.18,155.05,6.644]
[1723110067184,16.3851,155.2,155.13,6.4458]
[1723110067387,16.3851,155.2,155.05,6.644]
[1723110067592,6.4444,155.18,155.13,6.4461]
[1723110069665,16.5712,155.24,155.1,6.2204]
[1723110069981,6.4412,155.25,155.19,6.4437]
[1723110070290,6.4408,155.26,155.12,6.1419]
[1723110070458,6.4408,155.26,155.2,6.443]
[1723110071085,6.4413,155.25,155.18,6.4438]
[1723110071378,23.28972004,155.28,155.13,0.17]
[1723110071379,6.4392,155.3,155.2,6.3835]
[1723110071678,6.4395,155.29,155.23,6.4416]
[1723110071876,6.44,155.28,155.21,45.0]
[1723110072462,6.71354008,155.31,155.23,6.442]
[1723110072463,6.4395,155.29,155.23,6.442]
[1723110074469,6.4391,155.31,155.21,45.0]
[1723110074802,6.4391,155.31,155.21,46.2864672]
[1723110074971,6.4391,155.31,155.22,0.17]
[1723110075861,6.4391,155.3,155.22,0.17]
[1723110076096,6.4386,155.32,155.26,6.4407]
[1723110076703,6.437,155.35,155.29,6.4394]
[1723110076989,0.8466586,155.37,155.24,1.28682062]
[1723110077168,0.8466586,155.37,155.29,6.1317]
[1723110077370,6.4376,155.34,155.29,12.5712]
[1723110077763,0.8466586,155.37,155.29,12.5712]
[1723110078388,1.60977582,155.36,155.29,6.1317]
[1723110078568,1.77977582,155.36,155.29,6.1317]